bitfinex/quotes_BTCUSD_20241222
["timestamp","ask_amount","ask_price","bid_price","bid_amount"]
[1734852654283,0.0759,96564.0,96557.0,8.57e-05]
[1734852654560,0.1013084,96563.0,96557.0,8.57e-05]
[1734852654915,0.437241,96562.0,96557.0,8.57e-05]
[1734852655143,0.230125,96560.0,96557.0,8.57e-05]
[1734852655354,0.023,96558.0,96557.0,8.57e-05]
[1734852655578,0.1243084,96558.0,96557.0,8.57e-05]
[1734852655755,0.14364307,96558.0,96557.0,8.57e-05]
[1734852656758,0.35077207,96558.0,96557.0,8.57e-05]
[1734852656936,0.6930522,96558.0,96557.0,8.57e-05]
[1734852657343,0.6980522,96558.0,96557.0,8.57e-05]
[1734852657767,0.6940522,96558.0,96557.0,8.57e-05]
[1734852657968,0.92607023,96558.0,96557.0,8.57e-05]
[1734852658148,0.92707023,96558.0,96557.0,8.57e-05]
[1734852658534,0.92607023,96558.0,96557.0,8.57e-05]
[1734852658776,0.90673556,96558.0,96557.0,8.57e-05]
[1734852658999,0.90773556,96558.0,96557.0,8.57e-05]
[1734852659368,0.90673556,96558.0,96557.0,8.57e-05]
[1734852660192,0.91173556,96558.0,96557.0,8.57e-05]
[1734852660391,0.58029816,96558.0,96557.0,8.57e-05]
[1734852661416,0.57929816,96558.0,96557.0,8.57e-05]
[1734852661635,0.34728013,96558.0,96557.0,8.57e-05]
[1734852661838,0.34728013,96558.0,96557.0,0.00467038]
[1734852662502,0.34228013,96558.0,96557.0,0.00467038]
[1734852662772,0.34528013,96558.0,96557.0,0.00467038]
[1734852664127,0.34228013,96558.0,96557.0,0.00467038]
[1734852664330,0.52776807,96558.0,96557.0,0.00467038]
[1734852664568,0.53476807,96558.0,96557.0,0.00467038]
[1734852665376,0.34828013,96558.0,96557.0,0.00467038]
[1734852665592,0.34828013,96558.0,96557.0,8.57e-05]
[1734852665792,0.34828013,96558.0,96557.0,0.0010857]
[1734852666214,0.34228013,96558.0,96557.0,0.0010857]
[1734852666417,0.61658853,96558.0,96557.0,0.0010857]
[1734852666621,0.2753084,96558.0,96557.0,0.0010857]
[1734852666826,0.2743084,96558.0,96557.0,0.0010857]
[1734852667224,0.2773084,96558.0,96557.0,8.57e-05]
[1734852667430,0.2743084,96558.0,96557.0,8.57e-05]
[1734852667949,0.62258853,96558.0,96557.0,8.57e-05]
[1734852668191,0.207144,96551.0,96550.0,0.00024873]
[1734852668403,0.3314524,96551.0,96550.0,0.00024873]
[1734852669170,0.1013084,96551.0,96550.0,0.00024873]
[1734852669371,0.023,96557.0,96550.0,0.00024873]
[1734852669577,0.1013084,96556.0,96550.0,0.00485743]
[1734852669772,0.1013084,96556.0,96550.0,0.00024873]
[1734852669976,0.34228013,96551.0,96550.0,0.00024873]
[1734852670136,0.34528013,96551.0,96550.0,0.00024873]
[1734852670555,0.34228013,96551.0,96550.0,0.00024873]
[1734852670775,0.23174783,96553.0,96550.0,0.00024873]
[1734852670776,0.09270406,96553.0,96551.0,0.207144]
[1734852672986,0.09270406,96561.0,96560.0,0.207125]
[1734852674130,0.09270406,96563.0,96560.0,0.207125]
[1734852674851,0.09270406,96563.0,96560.0,0.208125]
[1734852675259,0.09270406,96563.0,96560.0,0.207125]
[1734852675460,0.09270406,96563.0,96561.0,0.0756]
[1734852677392,0.09270406,96570.0,96561.0,0.0766]
[1734852677792,0.09270406,96570.0,96561.0,0.0756]
[1734852678371,0.09270406,96570.0,96561.0,0.0766]
[1734852678571,0.09270406,96569.0,96561.0,0.0766]
[1734852678966,0.09270406,96569.0,96561.0,0.08121798]
[1734852680024,0.09270406,96568.0,96561.0,0.00561798]
[1734852680391,0.09270406,96568.0,96561.0,0.00461798]
[1734852680821,0.09270406,96568.0,96561.0,0.00561798]
[1734852681231,0.09270406,96570.0,96561.0,0.00461798]
[1734852681602,0.09270406,96570.0,96561.0,0.00561798]
[1734852682005,0.09270406,96570.0,96561.0,0.00461798]
[1734852683385,0.0031714,96562.0,96561.0,0.00461798]
[1734852683611,0.0001714,96562.0,96561.0,0.00461798]
[1734852685001,0.0001714,96562.0,96561.0,0.00861798]
[1734852685524,0.0001714,96562.0,96561.0,0.00761798]
[1734852686667,0.0001714,96562.0,96561.0,0.003]
[1734852687054,0.0001714,96562.0,96561.0,0.006]
[1734852690204,0.0001714,96562.0,96561.0,0.003]
[1734852690412,0.0001714,96562.0,96560.0,0.207125]
[1734852690880,0.0001714,96562.0,96561.0,0.003]
[1734852691190,0.0001714,96562.0,96561.0,0.006]
[1734852691405,0.0001714,96562.0,96560.0,0.207125]
[1734852691752,0.0001714,96562.0,96560.0,0.210125]
[1734852692791,0.0001714,96562.0,96560.0,0.213125]
[1734852693299,0.0001714,96562.0,96560.0,0.207125]
[1734852693522,0.0001714,96562.0,96561.0,0.003]
[1734852693887,0.0001714,96562.0,96560.0,0.207125]
[1734852694094,0.0011714,96562.0,96560.0,0.210125]
[1734852694317,0.0011714,96562.0,96560.0,0.214125]
[1734852695332,0.0011714,96562.0,96561.0,0.08293558]
[1734852696803,0.0001714,96562.0,96561.0,0.08293558]
[1734852697212,0.0011714,96562.0,96561.0,0.08293558]
[1734852697372,0.0001714,96562.0,96561.0,0.08793558]
[1734852697694,0.0011714,96562.0,96561.0,0.09093558]
[1734852698299,0.0011714,96562.0,96561.0,0.19224398]
[1734852704871,0.001,96562.0,96561.0,0.33924398]
[1734852705090,0.0001714,96575.0,96574.0,0.485395]
[1734852705365,0.0001714,96592.0,96588.0,0.207065]
[1734852705585,0.0001714,96592.0,96588.0,0.288365]
[1734852706559,0.0001714,96592.0,96588.0,0.28851784]
[1734852706763,0.0001714,96592.0,96588.0,0.29151784]
[1734852707168,0.0001714,96592.0,96588.0,0.29451784]
[1734852711935,0.0001714,96592.0,96588.0,0.30497202]
[1734852723073,0.0001714,96592.0,96588.0,0.00615284]
[1734852723282,0.08,96590.0,96588.0,0.00615284]
[1734852723483,0.0459714,96589.0,96588.0,0.00615284]
[1734852724469,0.0459714,96589.0,96588.0,0.00315284]
[1734852724699,0.0479714,96589.0,96588.0,0.00015284]
[1734852726058,0.1722798,96589.0,96588.0,0.00015284]
[1734852726621,0.1702798,96589.0,96588.0,0.00015284]
[1734852727063,0.4022798,96589.0,96588.0,0.00015284]
[1734852727239,0.4002798,96589.0,96588.0,0.00015284]
[1734852727716,0.4022798,96589.0,96588.0,0.00015284]
[1734852727861,0.4002798,96589.0,96588.0,0.00015284]
[1734852728233,0.4052798,96589.0,96588.0,0.00115284]
[1734852728503,0.49298386,96589.0,96588.0,0.00015284]
[1734852729525,0.4012798,96589.0,96588.0,0.00015284]
[1734852729952,0.4062798,96589.0,96588.0,0.00115284]
[1734852730400,0.74773785,96589.0,96588.0,0.00115284]
[1734852730630,0.74773785,96589.0,96588.0,0.00094689]
[1734852731305,0.97948568,96589.0,96588.0,0.00094689]
[1734852734320,0.74773785,96589.0,96588.0,0.00094689]
[1734852736131,0.84773785,96589.0,96588.0,0.00094689]
[1734852736758,0.94773785,96589.0,96588.0,0.00094689]
[1734852737151,0.15,96582.0,96578.0,8.57e-05]
[1734852737352,0.173,96580.0,96578.0,0.00024873]
[1734852737577,0.6108924,96579.0,96578.0,0.00024873]
[1734852738589,0.95235045,96579.0,96578.0,0.00024873]
[1734852740480,0.96135045,96579.0,96578.0,0.00024873]
[1734852740681,0.96535045,96579.0,96578.0,0.00024873]
[1734852741196,0.95235045,96579.0,96578.0,0.00024873]
[1734852741401,0.95635045,96579.0,96578.0,0.00024873]
[1734852741751,0.96535045,96579.0,96578.0,0.00024873]
[1734852741916,0.95635045,96579.0,96578.0,0.00024873]
[1734852742125,0.95235045,96579.0,96578.0,0.00024873]
[1734852743108,1.18337957,96579.0,96578.0,0.00024873]
[1734852743306,1.19237957,96579.0,96578.0,0.00024873]
[1734852743509,1.19837957,96579.0,96578.0,0.00024873]
[1734852743927,1.19237957,96579.0,96578.0,0.00024873]
[1734852744136,0.96135045,96579.0,96578.0,0.00024873]
[1734852744327,0.96535045,96579.0,96578.0,0.00024873]
[1734852745191,1.15011546,96579.0,96578.0,0.00024873]
[1734852745394,1.02061546,96579.0,96578.0,0.00024873]
[1734852746623,0.2743084,96579.0,96578.0,0.00024873]
[1734852746824,0.15,96578.0,96564.0,0.207115]
[1734852747027,0.1013084,96577.0,96564.0,0.20727806]
[1734852747586,0.1013084,96577.0,96569.0,0.207104]
[1734852748555,0.006,96578.0,96574.0,0.207093]
[1734852749591,0.005,96577.0,96574.0,0.207093]
[1734852749779,0.006,96577.0,96574.0,0.207093]
[1734852749992,0.001,96577.0,96574.0,0.207093]
[1734852750193,0.0231714,96589.0,96574.0,0.207093]
[1734852750389,0.023,96587.0,96574.0,0.207093]
[1734852750589,0.001,96578.0,96574.0,0.207093]
[1734852750803,0.006,96578.0,96574.0,0.208093]
[1734852751016,0.005,96578.0,96574.0,0.208093]
[1734852751267,0.023,96585.0,96574.0,0.207093]
[1734852751617,0.1013084,96584.0,96574.0,0.208093]
[1734852752923,0.1013084,96584.0,96574.0,0.2081787]
[1734852753127,0.001,96578.0,96574.0,0.2071787]
[1734852753273,0.001,96578.0,96574.0,0.2081787]
[1734852753497,0.005,96578.0,96574.0,0.2081787]
[1734852753684,0.1013084,96577.0,96574.0,8.57e-05]
[1734852754016,0.023,96576.0,96574.0,8.57e-05]
[1734852754220,0.005,96578.0,96574.0,0.4142727]
[1734852754359,0.023,96588.0,96574.0,8.57e-05]
[1734852754563,0.16064669,96589.0,96574.0,8.57e-05]
[1734852754564,0.023,96585.0,96575.0,0.207092]
[1734852754763,0.005,96578.0,96575.0,0.207092]
[1734852754968,0.006,96578.0,96575.0,0.207092]
[1734852756052,0.006,96578.0,96577.0,0.207088]
[1734852756285,0.005,96578.0,96577.0,0.207088]
[1734852756461,0.005,96578.0,96576.0,0.0828]
[1734852756664,0.023,96583.0,96576.0,0.0828]
[1734852756866,0.1013084,96582.0,96576.0,0.0828]
[1734852757077,0.004,96578.0,96576.0,0.0828]
[1734852757316,0.001,96578.0,96576.0,0.0828]
[1734852757704,0.003,96578.0,96576.0,0.0828]
[1734852760883,0.1013084,96582.0,96576.0,0.0828]
[1734852761297,0.002,96578.0,96576.0,0.0828]
[1734852762514,0.002,96578.0,96574.0,8.57e-05]
[1734852762710,0.045,96580.0,96574.0,8.57e-05]
[1734852762940,0.1463084,96580.0,96574.0,8.57e-05]
[1734852763613,0.001,96578.0,96574.0,8.57e-05]
[1734852764027,0.1463084,96580.0,96574.0,8.57e-05]
[1734852764245,0.1483084,96580.0,96574.0,8.57e-05]
[1734852764447,0.1463084,96580.0,96574.0,8.57e-05]
[1734852764981,0.001,96578.0,96574.0,8.57e-05]
[1734852766229,0.0923683,96577.0,96574.0,8.57e-05]
[1734852767708,0.0933683,96577.0,96574.0,8.57e-05]
[1734852768033,0.0933683,96577.0,96574.0,0.0010857]
[1734852768249,0.0923683,96576.0,96574.0,0.0010857]
[1734852768632,0.0923683,96576.0,96575.0,0.207092]
[1734852769064,0.13855245,96576.0,96575.0,0.207092]
[1734852769753,0.13855245,96576.0,96574.0,0.0010857]
[1734852770014,0.13855245,96576.0,96574.0,8.57e-05]
[1734852770254,0.13855245,96577.0,96574.0,8.57e-05]
[1734852770504,0.13855245,96577.0,96575.0,0.001]
[1734852771209,0.18476501,96577.0,96575.0,0.001]
[1734852771451,0.18476501,96577.0,96574.0,8.57e-05]
[1734852772078,0.18476501,96578.0,96574.0,8.57e-05]
[1734852772692,0.001,96577.0,96575.0,0.285592]
[1734852773365,0.18476501,96577.0,96575.0,0.285592]
[1734852774021,0.13914433,96576.0,96575.0,0.285592]
[1734852775001,0.13914433,96576.0,96575.0,0.286592]
[1734852776174,0.13914433,96576.0,96575.0,0.285592]
[1734852776589,0.13914433,96576.0,96575.0,0.286592]
[1734852777216,0.13914433,96576.0,96575.0,0.287592]
[1734852777490,0.18476501,96577.0,96575.0,0.287592]
[1734852777691,0.18476501,96577.0,96575.0,0.002]
[1734852778574,0.18476501,96577.0,96575.0,0.001]
[1734852778575,0.23102912,96577.0,96575.0,0.001]
[1734852779277,0.23102912,96577.0,96574.0,8.57e-05]
[1734852779690,0.23102912,96577.0,96575.0,0.001]
[1734852780081,0.23102912,96577.0,96574.0,8.57e-05]
[1734852780445,0.23202912,96577.0,96575.0,0.207092]
[1734852780857,0.18552328,96576.0,96575.0,0.207092]
[1734852781126,0.18552328,96576.0,96574.0,8.57e-05]
[1734852781909,0.34243704,96577.0,96574.0,8.57e-05]
[1734852782856,0.34243704,96577.0,96575.0,0.001]
[1734852782992,0.52796032,96577.0,96575.0,0.001]
[1734852783188,0.52796032,96577.0,96575.0,0.208091]
[1734852783396,0.52796032,96577.0,96575.0,0.207091]
[1734852784382,0.52796032,96577.0,96575.0,0.208091]
[1734852784798,0.13910746,96576.0,96575.0,0.208091]
[1734852785713,0.13910746,96576.0,96575.0,0.207091]
[1734852786118,0.13910746,96576.0,96575.0,0.208091]
[1734852788378,0.52799467,96577.0,96575.0,0.208091]
[1734852788586,0.52799467,96577.0,96575.0,0.207091]
[1734852789038,0.52799467,96577.0,96575.0,0.208091]
[1734852789260,0.18552328,96576.0,96575.0,0.208091]
[1734852789401,0.18552328,96576.0,96575.0,0.207091]
[1734852789775,0.18552328,96576.0,96575.0,0.208091]
[1734852790371,0.23102912,96577.0,96575.0,0.207091]
[1734852790685,0.23102912,96577.0,96575.0,0.208091]
[1734852791595,0.0001714,96578.0,96575.0,0.208091]
[1734852791596,0.23102912,96576.0,96575.0,0.208091]
[1734852792094,0.23102912,96576.0,96575.0,0.207091]
[1734852792453,0.23102912,96576.0,96575.0,0.208091]
[1734852792832,0.0001714,96578.0,96575.0,0.207091]
[1734852793103,0.0001714,96578.0,96575.0,0.208091]
[1734852793513,0.0001714,96578.0,96575.0,0.415183]
[1734852793841,0.0001714,96578.0,96577.0,0.207088]
[1734852794174,0.0011714,96578.0,96577.0,0.207088]
[1734852794562,0.00111521,96578.0,96577.0,0.207088]
[1734852795089,0.00011521,96578.0,96577.0,0.207088]
[1734852795627,0.34299325,96578.0,96577.0,0.207088]
[1734852796039,0.34299325,96578.0,96577.0,0.208088]
[1734852796497,0.34399325,96578.0,96577.0,0.208088]
[1734852802341,0.46830165,96578.0,96577.0,0.001]
[1734852802487,0.69630165,96578.0,96577.0,0.0010857]
[1734852803785,0.71464801,96578.0,96577.0,0.0010857]
[1734852803957,0.71464801,96578.0,96574.0,8.57e-05]
[1734852804203,0.357092,96575.0,96574.0,8.57e-05]
[1734852804355,0.4814004,96575.0,96574.0,8.57e-05]
[1734852804705,0.50074676,96575.0,96574.0,8.57e-05]
[1734852804874,0.53168732,96575.0,96574.0,8.57e-05]
[1734852805342,0.53468732,96575.0,96574.0,8.57e-05]
[1734852805938,0.53168732,96575.0,96574.0,8.57e-05]
[1734852806110,1.09696536,96575.0,96574.0,8.57e-05]
[1734852806317,1.19996536,96575.0,96574.0,8.57e-05]
[1734852806714,0.357114,96565.0,96564.0,0.00016306]
[1734852806947,0.4814224,96565.0,96564.0,0.00016306]
[1734852807450,0.60890932,96565.0,96564.0,0.00016306]
[1734852807687,0.75410932,96565.0,96564.0,0.00016306]
[1734852808684,1.09698736,96565.0,96564.0,0.00016306]
[1734852809094,1.10298736,96565.0,96564.0,0.00016306]
[1734852810287,1.02211931,96565.0,96564.0,0.00016306]
[1734852810532,1.11311931,96565.0,96564.0,0.00016306]
[1734852810738,1.32583248,96565.0,96564.0,0.00016306]
[1734852810881,1.33483248,96565.0,96564.0,0.00016306]
[1734852811383,1.32883248,96565.0,96564.0,0.00016306]
[1734852811535,1.33383248,96565.0,96564.0,0.00016306]
[1734852811962,0.93891931,96565.0,96564.0,0.00016306]
[1734852812494,0.94391931,96565.0,96564.0,0.00016306]
[1734852812720,0.93491931,96565.0,96564.0,0.00016306]
[1734852812879,0.94391931,96565.0,96564.0,0.00016306]
[1734852813041,0.84843239,96565.0,96564.0,0.00016306]
[1734852813241,0.89854607,96565.0,96564.0,0.00016306]
[1734852813645,0.88954607,96565.0,96564.0,0.00016306]
[1734852814117,0.89854607,96565.0,96564.0,0.00016306]
[1734852814347,0.88454607,96565.0,96564.0,0.00016306]
[1734852814727,0.88954607,96565.0,96564.0,0.00016306]
[1734852815139,0.89254607,96565.0,96564.0,0.00016306]
[1734852815337,0.99254607,96565.0,96564.0,0.00024876]
[1734852815478,0.99554607,96565.0,96564.0,0.00024876]
[1734852815875,0.99254607,96565.0,96564.0,0.00024876]
[1734852816329,0.99654607,96565.0,96564.0,0.00024876]
[1734852816530,0.98854607,96565.0,96564.0,0.00024876]
[1734852816943,0.99754607,96565.0,96564.0,0.00024876]
[1734852817578,1.00154607,96565.0,96564.0,0.00024876]
[1734852817806,0.99554607,96565.0,96564.0,0.00024876]
[1734852818013,1.00454607,96565.0,96564.0,0.00024876]
[1734852818253,0.98454607,96565.0,96564.0,0.00024876]
[1734852818631,0.207135,96555.0,96550.0,8.57e-05]
[1734852818860,0.4814434,96555.0,96554.0,0.00024879]
[1734852819318,0.53155708,96555.0,96554.0,0.00024879]
[1734852819648,0.207139,96554.0,96543.0,0.0829]
[1734852819823,0.1243084,96553.0,96548.0,0.00024889]
[1734852820170,0.207146,96550.0,96548.0,0.00024889]
[1734852820369,0.1013084,96549.0,96548.0,0.00024889]
[1734852820652,0.14358289,96549.0,96548.0,0.00024889]
[1734852821637,0.23707115,96549.0,96548.0,0.00024889]
[1734852822723,0.14458289,96549.0,96548.0,0.00024889]
[1734852823634,0.14958289,96549.0,96548.0,0.00024889]
[1734852824779,0.02527449,96549.0,96548.0,0.00024889]
[1734852824915,0.02527449,96549.0,96548.0,0.07884889]
[1734852825109,0.02527449,96549.0,96548.0,0.08607319]
[1734852836284,0.02027449,96549.0,96548.0,0.08607319]
[1734852836482,0.01927449,96549.0,96548.0,0.08607319]
[1734852836699,0.02427449,96549.0,96548.0,0.08607319]
[1734852837296,0.02027449,96549.0,96548.0,0.08607319]
[1734852837705,0.02227449,96549.0,96548.0,0.08607319]
[1734852837932,0.02227449,96549.0,96548.0,0.00747319]
[1734852838144,0.14558289,96549.0,96548.0,0.00747319]
[1734852839285,0.14358289,96549.0,96548.0,0.00747319]
[1734852839645,0.14558289,96549.0,96548.0,0.00747319]
[1734852840255,0.14758289,96549.0,96548.0,0.00747319]
[1734852841540,0.24007115,96549.0,96548.0,0.00747319]
[1734852841964,0.22079666,96549.0,96548.0,0.00747319]
[1734852843613,0.45039666,96549.0,96548.0,0.00747319]
[1734852843863,0.4061084,96549.0,96548.0,0.00747319]
[1734852844063,0.42544985,96549.0,96548.0,0.00747319]
[1734852844215,0.52544985,96549.0,96548.0,0.00747319]
[1734852844792,0.86738212,96549.0,96548.0,0.00747319]
[1734852845080,0.173,96544.0,96531.0,0.0001]
[1734852845238,0.173,96542.0,96531.0,0.0006431]
[1734852845440,0.230185,96532.0,96531.0,0.0006431]
[1734852845662,0.3314934,96532.0,96531.0,0.0006431]
[1734852846048,0.38176294,96532.0,96531.0,0.0006431]
[1734852846605,0.53176294,96532.0,96531.0,0.0006431]
[1734852846813,0.53276294,96532.0,96531.0,0.0006431]
[1734852847015,0.68233355,96532.0,96531.0,0.0006431]
[1734852847187,0.68133355,96532.0,96531.0,0.0006431]
[1734852847390,0.82953355,96532.0,96531.0,0.0006431]
[1734852847795,0.79960546,96532.0,96531.0,0.0006431]
[1734852848420,1.00258754,96532.0,96531.0,0.0006431]
[1734852848646,1.10558754,96532.0,96531.0,0.0006431]
[1734852849025,1.10158754,96532.0,96531.0,0.0006431]
[1734852849204,1.11058754,96532.0,96531.0,0.0006431]
[1734852849451,1.11258754,96532.0,96531.0,0.0006431]
[1734852849952,0.230228,96512.0,96509.0,8.57e-05]
[1734852850160,0.3315364,96512.0,96509.0,8.57e-05]
[1734852850477,0.35087785,96512.0,96509.0,8.57e-05]
[1734852851852,0.44345276,96512.0,96509.0,8.57e-05]
[1734852852061,0.44445276,96512.0,96509.0,8.57e-05]
[1734852852741,0.23722476,96512.0,96509.0,8.57e-05]
[1734852852911,0.14464985,96512.0,96509.0,8.57e-05]
[1734852853455,0.1253084,96512.0,96509.0,8.57e-05]
[1734852854280,0.14456507,96512.0,96509.0,8.57e-05]
[1734852855439,0.15470161,96512.0,96509.0,8.57e-05]
[1734852856000,0.13544494,96512.0,96509.0,8.57e-05]
[1734852856352,0.28544494,96512.0,96509.0,8.57e-05]
[1734852856555,0.38600161,96512.0,96509.0,8.57e-05]
[1734852856909,0.48500161,96512.0,96509.0,8.57e-05]
[1734852857365,0.48700161,96512.0,96509.0,8.57e-05]
[1734852857559,0.51778358,96512.0,96509.0,8.57e-05]
[1734852857676,0.33648358,96512.0,96509.0,8.57e-05]
[1734852858169,0.30570161,96512.0,96509.0,8.57e-05]
[1734852858373,0.31070161,96512.0,96509.0,8.57e-05]
[1734852858521,0.30370161,96512.0,96509.0,8.57e-05]
[1734852858729,0.87622711,96512.0,96509.0,8.57e-05]
[1734852859026,0.88922711,96512.0,96509.0,8.57e-05]
[1734852859225,0.98922711,96512.0,96509.0,8.57e-05]
[1734852859433,0.98522711,96512.0,96509.0,8.57e-05]
[1734852859762,0.98222711,96512.0,96511.0,0.0011]
[1734852860393,0.98522711,96512.0,96511.0,0.0001]
[1734852860596,1.07082711,96512.0,96511.0,0.0001]
[1734852861184,1.17082711,96512.0,96511.0,0.0001]
[1734852861336,1.17082711,96512.0,96509.0,8.57e-05]
[1734852861337,0.1,96510.0,96509.0,8.57e-05]
[1734852861537,0.3743084,96510.0,96509.0,8.57e-05]
[1734852861740,0.4743084,96510.0,96509.0,8.57e-05]
[1734852861943,0.57516507,96510.0,96509.0,8.57e-05]
[1734852862476,0.207266,96494.0,96478.0,0.0762]
[1734852862619,0.4815744,96494.0,96478.0,0.0762]
[1734852863026,0.50083107,96494.0,96478.0,0.0762]
[1734852863641,0.503374,96494.0,96478.0,0.0762]
[1734852864339,0.503374,96494.0,96474.0,0.0762]
[1734852864340,0.584974,96494.0,96474.0,0.0762]
[1734852864751,0.684974,96494.0,96474.0,0.0762]
[1734852865634,0.690974,96494.0,96474.0,0.0762]
[1734852865875,0.78323593,96494.0,96474.0,0.0762]
[1734852866707,0.690974,96494.0,96474.0,0.0762]
[1734852866902,0.509374,96494.0,96474.0,0.0762]
[1734852867945,0.509374,96494.0,96476.0,0.207305]
[1734852868180,0.51979426,96494.0,96474.0,0.0762]
[1734852869473,0.55055687,96494.0,96474.0,0.0762]
[1734852870024,0.65055687,96494.0,96474.0,0.0762]
[1734852870711,0.87925687,96494.0,96471.0,0.0001]
[1734852870934,0.98056527,96494.0,96471.0,0.0001]
[1734852871144,0.87925687,96494.0,96471.0,0.0001]
[1734852871790,0.87725687,96494.0,96471.0,0.0001]
[1734852871962,0.1,96484.0,96471.0,0.0001]
[1734852872166,0.5585964,96484.0,96471.0,0.0001]
[1734852872410,0.63161568,96484.0,96471.0,0.0001]
[1734852873311,0.64061568,96484.0,96471.0,0.0001]
[1734852873910,0.207301,96478.0,96471.0,0.0001]
[1734852874099,0.4586094,96478.0,96471.0,0.0001]
[1734852874300,0.4816094,96478.0,96471.0,0.0001]
[1734852874502,0.53162868,96478.0,96471.0,0.0001]
[1734852875593,0.53862868,96478.0,96471.0,0.0001]
[1734852875730,0.53162868,96478.0,96471.0,0.0001]
[1734852876085,0.53962868,96478.0,96471.0,0.0001]
[1734852877068,0.54162868,96478.0,96471.0,0.0001]
[1734852877508,0.53962868,96478.0,96471.0,0.0001]
[1734852877881,0.54262868,96478.0,96471.0,0.0001]
[1734852878096,0.15,96471.0,96453.0,0.255053]
[1734852878270,0.023,96468.0,96451.0,0.0001857]
[1734852878629,0.023,96466.0,96451.0,0.0001857]
[1734852878764,0.023,96464.0,96451.0,0.0001857]
[1734852878972,0.5159764,96463.0,96451.0,0.0001857]
[1734852879178,0.207337,96461.0,96451.0,0.0001857]
[1734852879520,0.1243084,96460.0,96451.0,0.0001857]
[1734852879777,0.17432768,96460.0,96451.0,0.0001857]
[1734852879982,0.17487027,96460.0,96451.0,0.0001857]
[1734852880186,0.023,96458.0,96451.0,0.0001857]
[1734852880387,0.1243084,96458.0,96451.0,0.0001857]
[1734852880724,0.17432768,96458.0,96451.0,0.0001857]
[1734852881130,0.17432768,96458.0,96457.0,0.0805857]
[1734852882025,0.17732768,96458.0,96457.0,0.0805857]
[1734852882181,0.17432768,96458.0,96457.0,0.0805857]
[1734852882590,0.17732768,96458.0,96457.0,0.0805857]
[1734852882820,0.17432768,96458.0,96457.0,0.0805857]
[1734852883197,0.17832768,96458.0,96457.0,0.0805857]
[1734852884517,0.17532768,96458.0,96457.0,0.0805857]
[1734852884727,0.17932768,96458.0,96457.0,0.0805857]
[1734852886931,0.14856507,96458.0,96457.0,0.0805857]
[1734852887576,0.02425667,96458.0,96457.0,0.0805857]
[1734852888496,0.02025667,96458.0,96457.0,0.0805857]
[1734852888895,0.02125667,96458.0,96457.0,0.0805857]
[1734852890052,0.02025667,96458.0,96457.0,0.0805857]
[1734852890405,0.02025667,96458.0,96457.0,0.0815857]
[1734852890749,0.01925667,96458.0,96457.0,0.0805857]
[1734852890918,0.01925667,96458.0,96457.0,0.0825857]
[1734852891126,0.01925667,96458.0,96457.0,0.0835857]
[1734852891486,0.01925667,96458.0,96457.0,0.0815857]
[1734852891687,0.02025667,96458.0,96457.0,0.0805857]
[1734852892024,0.02025667,96458.0,96457.0,0.0815857]
[1734852892467,0.01925667,96458.0,96457.0,0.0815857]
[1734852892690,0.02025667,96458.0,96457.0,0.0815857]
[1734852893339,0.02025667,96458.0,96457.0,0.0805857]
[1734852893711,0.02025667,96458.0,96457.0,0.0815857]
[1734852894093,0.01925667,96458.0,96457.0,0.0805857]
[1734852894269,0.02025667,96458.0,96457.0,0.0805857]
[1734852894470,0.02025667,96458.0,96457.0,0.0815857]
[1734852894810,0.01925667,96458.0,96457.0,0.0815857]
[1734852895066,0.02025667,96458.0,96457.0,0.0805857]
[1734852895250,0.01925667,96458.0,96457.0,0.0815857]
[1734852896586,0.01925667,96458.0,96457.0,0.0805857]
[1734852897062,0.01925667,96458.0,96457.0,0.0825857]
[1734852897369,0.01925667,96458.0,96457.0,0.0835857]
[1734852898156,0.01925667,96458.0,96457.0,0.0815857]
[1734852898545,0.01925667,96458.0,96457.0,0.0825857]
[1734852899268,0.01925667,96458.0,96457.0,0.0835857]
[1734852900312,0.01925667,96458.0,96457.0,0.0815857]
[1734852900671,0.01925667,96458.0,96457.0,0.0825857]
[1734852900854,0.01925667,96458.0,96457.0,0.0815857]
[1734852901234,0.02125667,96458.0,96457.0,0.0010857]
[1734852901414,0.01925667,96458.0,96457.0,8.57e-05]
[1734852901589,0.14356507,96458.0,96457.0,0.0010857]
[1734852901790,0.14556507,96458.0,96457.0,0.0010857]
[1734852902115,0.14356507,96458.0,96457.0,8.57e-05]
[1734852902291,0.14556507,96458.0,96457.0,8.57e-05]
[1734852902731,0.14356507,96458.0,96457.0,8.57e-05]
[1734852902932,0.4851552,96458.0,96457.0,8.57e-05]
[1734852903530,0.4851552,96458.0,96457.0,0.0010857]
[1734852904152,0.2873709,96458.0,96457.0,8.57e-05]
[1734852904347,0.2833709,96458.0,96457.0,8.57e-05]
[1734852904998,0.1243084,96458.0,96457.0,8.57e-05]
[1734852905202,0.1293084,96458.0,96457.0,8.57e-05]
[1734852906126,0.1253084,96458.0,96457.0,8.57e-05]
[1734852906513,0.2753084,96458.0,96457.0,8.57e-05]
[1734852906754,0.2743084,96458.0,96457.0,8.57e-05]
[1734852906953,0.2753084,96458.0,96457.0,8.57e-05]
[1734852907153,0.61719705,96458.0,96457.0,8.57e-05]
[1734852907756,0.61619705,96458.0,96457.0,8.57e-05]
[1734852908379,0.62119705,96458.0,96457.0,8.57e-05]
[1734852908803,0.61719705,96458.0,96457.0,8.57e-05]
[1734852909013,0.62119705,96458.0,96457.0,8.57e-05]
[1734852909855,0.62019705,96458.0,96457.0,8.57e-05]
[1734852910288,0.62119705,96458.0,96457.0,8.57e-05]
[1734852912585,0.70019705,96458.0,96457.0,8.57e-05]
[1734852912802,0.74829705,96458.0,96457.0,8.57e-05]
[1734852913480,0.74729705,96458.0,96457.0,8.57e-05]
[1734852913687,0.74829705,96458.0,96457.0,8.57e-05]
[1734852914142,0.173,96456.0,96451.0,0.00015741]
[1734852914347,0.207354,96453.0,96451.0,0.00015741]
[1734852914545,0.1013084,96452.0,96451.0,0.00015741]
[1734852914955,0.1243084,96452.0,96451.0,0.00015741]
[1734852915920,0.46619705,96452.0,96451.0,0.00015741]
[1734852916120,0.46719705,96452.0,96451.0,0.00015741]
[1734852917317,0.46719705,96452.0,96451.0,0.00115741]
[1734852918794,0.54539705,96452.0,96451.0,0.00115741]
[1734852922606,0.54556845,96452.0,96451.0,0.00115741]
[1734852928019,0.46736845,96452.0,96451.0,0.00115741]
[1734852929882,0.46736845,96452.0,96436.0,0.0828]
[1734852930039,0.230359,96451.0,96436.0,0.0828]
[1734852930357,0.023,96449.0,96436.0,0.0828]
[1734852930558,0.1013084,96448.0,96436.0,0.0828]
[1734852930783,0.1013084,96448.0,96437.0,0.414777]
[1734852930985,0.34306005,96452.0,96443.0,0.207374]
[1734852931192,0.34306005,96452.0,96445.0,0.0478]
[1734852931487,0.34206005,96452.0,96451.0,0.337959]
[1734852931691,0.34206005,96452.0,96451.0,0.34900519]
[1734852931692,0.23151728,96452.0,96451.0,0.34900519]
[1734852932806,0.0011714,96452.0,96451.0,0.34900519]